[Event "Late-Titled-Tuesday-Blitz-January-23-2024"]
[Site "Chess.com"]
[Date "2024.01.23"]
[Round "11"]
[White "miraitrunks"]
[Black "Teidi96"]
[Result "0-1"]
[WhiteElo "2126"]
[BlackElo "2431"]
[TimeControl "180+1"]
[EndTime "16:00:42 PST"]
[Termination "Teidi96 won by resignation"]

1. e4 {[%clk 0:02:47.9]} 1... Nf6 {[%clk 0:03:00.9]} 2. e5 {[%clk 0:02:47.2]}
2... Nd5 {[%clk 0:03:01.4]} 3. c4 {[%clk 0:02:48.1]} 3... Nb6 {[%clk 0:03:01.8]}
4. c5 {[%clk 0:02:49]} 4... Nd5 {[%clk 0:03:01.9]} 5. d4 {[%clk 0:02:49.9]} 5...
d6 {[%clk 0:03:02.3]} 6. cxd6 {[%clk 0:02:50.8]} 6... cxd6 {[%clk 0:03:02.3]} 7.
Nf3 {[%clk 0:02:51.5]} 7... Nc6 {[%clk 0:03:02.1]} 8. exd6 {[%clk 0:02:30.5]}
8... Qxd6 {[%clk 0:02:59.2]} 9. Nc3 {[%clk 0:02:31]} 9... Nxc3 {[%clk
0:02:55.9]} 10. bxc3 {[%clk 0:02:31.9]} 10... e5 {[%clk 0:02:48.7]} 11. dxe5
{[%clk 0:01:58.8]} 11... Nxe5 {[%clk 0:02:48.2]} 12. Bf4 {[%clk 0:01:43.9]}
12... Qxd1+ {[%clk 0:02:44.9]} 13. Rxd1 {[%clk 0:01:43.2]} 13... Nxf3+ {[%clk
0:02:45.3]} 14. gxf3 {[%clk 0:01:43.7]} 14... Bd7 {[%clk 0:02:40.1]} 15. Bc4
{[%clk 0:01:43]} 15... Rc8 {[%clk 0:02:32.9]} 16. Bxf7+ {[%clk 0:01:40.9]} 16...
Ke7 {[%clk 0:02:22.4]} 17. Bd5 {[%clk 0:01:36.7]} 17... Rxc3 {[%clk 0:02:19.1]}
18. Bxb7 {[%clk 0:01:34.8]} 18... Bb5 {[%clk 0:02:15.1]} 19. Bd6+ {[%clk
0:01:28.1]} 19... Kf6 {[%clk 0:02:13.5]} 20. Bf4 {[%clk 0:00:43]} 20... Bb4
{[%clk 0:02:05.9]} 21. Bd2 {[%clk 0:00:42.8]} 21... Re8+ {[%clk 0:02:03.8]} 22.
Be4 {[%clk 0:00:42.5]} 22... Rxf3 {[%clk 0:01:52.7]} 23. Bxb4 {[%clk 0:00:16]}
23... Rxe4+ {[%clk 0:01:51.9]} 24. Kd2 {[%clk 0:00:16.6]} 24... Rd3+ {[%clk
0:01:47.3]} 25. Kc2 {[%clk 0:00:16.5]} 25... Rc4+ {[%clk 0:01:47.4]} 26. Kb2
{[%clk 0:00:13.8]} 26... Rxb4+ {[%clk 0:01:47.1]} 27. Kc2 {[%clk 0:00:14.4]}
27... Rxd1 {[%clk 0:01:42]} 28. Rxd1 {[%clk 0:00:15.3]} 28... Ba4+ {[%clk
0:01:42]} 0-1

[Event "Late-Titled-Tuesday-Blitz-January-23-2024"]
[Site "Chess.com"]
[Date "2024.01.23"]
[Round "11"]
[White "KacperPolOK"]
[Black "ItalianMachine"]
[Result "1-0"]
[WhiteElo "2485"]
[BlackElo "2360"]
[TimeControl "180+1"]
[EndTime "16:00:50 PST"]
[Termination "KacperPolOK won on time"]

1. e4 {[%clk 0:03:00.9]} 1... e5 {[%clk 0:02:59.4]} 2. Nf3 {[%clk 0:02:59.9]}
2... Nc6 {[%clk 0:02:56.9]} 3. Bc4 {[%clk 0:02:59.9]} 3... Nf6 {[%clk
0:02:56.3]} 4. O-O {[%clk 0:02:59]} 4... Nxe4 {[%clk 0:02:49.1]} 5. Nc3 {[%clk
0:02:58.9]} 5... Nxc3 {[%clk 0:02:40.1]} 6. dxc3 {[%clk 0:02:59.8]} 6... Be7
{[%clk 0:02:38.5]} 7. Qd5 {[%clk 0:02:57.8]} 7... O-O {[%clk 0:02:36]} 8. Nxe5
{[%clk 0:02:57.4]} 8... Nxe5 {[%clk 0:02:36.6]} 9. Qxe5 {[%clk 0:02:58.3]} 9...
d6 {[%clk 0:02:33.5]} 10. Qg3 {[%clk 0:02:58.1]} 10... d5 {[%clk 0:02:30.5]} 11.
Bd3 {[%clk 0:02:57.8]} 11... Be6 {[%clk 0:02:27.8]} 12. Bf4 {[%clk 0:02:57.6]}
12... c6 {[%clk 0:02:25.8]} 13. Rfe1 {[%clk 0:02:56.2]} 13... Bf6 {[%clk
0:02:22.7]} 14. Re2 {[%clk 0:02:50.5]} 14... Qb6 {[%clk 0:02:16.9]} 15. b3
{[%clk 0:02:44.6]} 15... a5 {[%clk 0:02:06.4]} 16. Rae1 {[%clk 0:02:42.5]} 16...
a4 {[%clk 0:02:04.7]} 17. Bc7 {[%clk 0:02:41]} 17... Qa7 {[%clk 0:02:03]} 18. b4
{[%clk 0:02:38.1]} 18... a3 {[%clk 0:01:57.5]} 19. Be5 {[%clk 0:02:30.5]} 19...
Bxe5 {[%clk 0:01:54.9]} 20. Rxe5 {[%clk 0:02:31.4]} 20... c5 {[%clk 0:01:23.1]}
21. Rh5 {[%clk 0:02:24.4]} 21... g6 {[%clk 0:01:19.2]} 22. Bxg6 {[%clk
0:02:19.5]} 22... fxg6 {[%clk 0:00:54.5]} 23. Rxe6 {[%clk 0:02:17.2]} 23... Rf7
{[%clk 0:00:46.7]} 24. Rxh7 {[%clk 0:02:09.4]} 24... Rxh7 {[%clk 0:00:40.6]} 25.
Rxg6+ {[%clk 0:02:00.4]} 25... Kf7 {[%clk 0:00:36.2]} 26. Qd6 {[%clk 0:01:59.6]}
26... Qa6 {[%clk 0:00:14.2]} 27. Rf6+ {[%clk 0:01:56.1]} 27... Kg7 {[%clk
0:00:10.5]} 28. Qe7+ {[%clk 0:01:53.1]} 28... Kh8 {[%clk 0:00:08.8]} 29. Rxa6
{[%clk 0:01:47.2]} 29... bxa6 {[%clk 0:00:06.6]} 30. Qe5+ {[%clk 0:01:44.6]} 1-0

[Event "Late-Titled-Tuesday-Blitz-January-23-2024"]
[Site "Chess.com"]
[Date "2024.01.23"]
[Round "11"]
[White "jk13"]
[Black "Jumbo"]
[Result "1-0"]
[WhiteElo "2695"]
[BlackElo "2939"]
[TimeControl "180+1"]
[EndTime "16:00:54 PST"]
[Termination "jk13 won by resignation"]

1. e4 {[%clk 0:03:00.9]} 1... c5 {[%clk 0:02:59.3]} 2. c3 {[%clk 0:02:59.8]}
2... Nf6 {[%clk 0:02:58.3]} 3. e5 {[%clk 0:03:00.3]} 3... Nd5 {[%clk 0:02:58.9]}
4. Bc4 {[%clk 0:03:00.8]} 4... Nb6 {[%clk 0:02:57.5]} 5. Bb3 {[%clk 0:03:01.4]}
5... Nc6 {[%clk 0:02:57.4]} 6. Nf3 {[%clk 0:03:01.2]} 6... d5 {[%clk 0:02:55]}
7. exd6 {[%clk 0:03:02.1]} 7... Qxd6 {[%clk 0:02:51.8]} 8. O-O {[%clk 0:03:02]}
8... c4 {[%clk 0:02:35.4]} 9. Bc2 {[%clk 0:03:02.2]} 9... Bg4 {[%clk 0:02:35.8]}
10. Qe2 {[%clk 0:03:02.8]} 10... e6 {[%clk 0:02:27.2]} 11. Na3 {[%clk
0:03:03.1]} 11... Qd5 {[%clk 0:02:26.7]} 12. Be4 {[%clk 0:03:03.3]} 12... Qc5
{[%clk 0:02:18.3]} 13. h3 {[%clk 0:03:00.6]} 13... Bh5 {[%clk 0:02:17.8]} 14. b3
{[%clk 0:02:58.9]} 14... cxb3 {[%clk 0:01:49.7]} 15. axb3 {[%clk 0:02:53.9]}
15... a6 {[%clk 0:01:38.2]} 16. Nc4 {[%clk 0:02:44]} 16... Nxc4 {[%clk 0:01:31]}
17. bxc4 {[%clk 0:02:44.9]} 17... Qd6 {[%clk 0:01:25.5]} 18. d4 {[%clk
0:02:31.2]} 18... Be7 {[%clk 0:01:24.8]} 19. Ba3 {[%clk 0:02:04.6]} 19... Qc7
{[%clk 0:01:21.4]} 20. Bxe7 {[%clk 0:01:40.2]} 20... Nxe7 {[%clk 0:01:20.2]} 21.
Rfb1 {[%clk 0:01:37.4]} 21... Rb8 {[%clk 0:01:18.7]} 22. c5 {[%clk 0:01:24]}
22... O-O {[%clk 0:01:17.7]} 23. Rb3 {[%clk 0:01:22]} 23... Nd5 {[%clk 0:01:12]}
24. Bxd5 {[%clk 0:01:11.6]} 24... exd5 {[%clk 0:01:10.7]} 25. Qe5 {[%clk
0:01:12.3]} 25... Qxe5 {[%clk 0:01:09]} 26. Nxe5 {[%clk 0:01:13.2]} 26... Rfd8
{[%clk 0:01:01.5]} 27. Rab1 {[%clk 0:00:56.8]} 27... f6 {[%clk 0:01:00.3]} 28.
Nc6 {[%clk 0:00:52.1]} 1-0

[Event "Late-Titled-Tuesday-Blitz-January-23-2024"]
[Site "Chess.com"]
[Date "2024.01.23"]
[Round "11"]
[White "DraningWaterHi"]
[Black "Crazy_girl99"]
[Result "0-1"]
[WhiteElo "2221"]
[BlackElo "2584"]
[TimeControl "180+1"]
[EndTime "16:01:02 PST"]
[Termination "Crazy_girl99 won by checkmate"]

1. d4 {[%clk 0:03:00.9]} 1... d5 {[%clk 0:02:59.7]} 2. Bf4 {[%clk 0:03:00.5]}
2... Nf6 {[%clk 0:03:00.2]} 3. e3 {[%clk 0:03:00.9]} 3... c6 {[%clk 0:03:00.2]}
4. c4 {[%clk 0:03:00.7]} 4... e6 {[%clk 0:03:00.2]} 5. Nc3 {[%clk 0:03:00.7]}
5... Bd6 {[%clk 0:03:00.6]} 6. Bg3 {[%clk 0:03:00.2]} 6... O-O {[%clk
0:03:00.6]} 7. Nf3 {[%clk 0:03:00.3]} 7... b6 {[%clk 0:03:01.2]} 8. Ne5 {[%clk
0:03:00.7]} 8... Bb7 {[%clk 0:03:01.7]} 9. f4 {[%clk 0:03:00.4]} 9... Nbd7
{[%clk 0:03:01.2]} 10. Bh4 {[%clk 0:03:00.4]} 10... Be7 {[%clk 0:02:59.9]} 11.
Bd3 {[%clk 0:03:00]} 11... Nxe5 {[%clk 0:02:59.7]} 12. fxe5 {[%clk 0:03:00]}
12... Ne8 {[%clk 0:02:46.1]} 13. Bxe7 {[%clk 0:02:59.1]} 13... Qxe7 {[%clk
0:02:47]} 14. cxd5 {[%clk 0:02:59.7]} 14... exd5 {[%clk 0:02:46.2]} 15. O-O
{[%clk 0:02:59.4]} 15... c5 {[%clk 0:02:44.6]} 16. Qh5 {[%clk 0:02:58.8]} 16...
g6 {[%clk 0:02:44.5]} 17. Qh6 {[%clk 0:02:58.7]} 17... Ng7 {[%clk 0:02:41.7]}
18. Rf6 {[%clk 0:02:55.3]} 18... Nh5 {[%clk 0:02:36.4]} 19. Raf1 {[%clk
0:02:50]} 19... Rae8 {[%clk 0:02:33.7]} 20. g4 {[%clk 0:02:38]} 20... Nxf6
{[%clk 0:02:32.4]} 21. Rxf6 {[%clk 0:02:37.2]} 21... Qd7 {[%clk 0:02:28.3]} 22.
Qg5 {[%clk 0:02:30.3]} 22... Re6 {[%clk 0:02:24.3]} 23. h3 {[%clk 0:02:27.8]}
23... Rfe8 {[%clk 0:02:23.2]} 24. Bb5 {[%clk 0:02:25.6]} 24... Bc6 {[%clk
0:02:22]} 25. Bxc6 {[%clk 0:02:26]} 25... Qxc6 {[%clk 0:02:20.4]} 26. Rf4 {[%clk
0:02:26.6]} 26... cxd4 {[%clk 0:02:17.2]} 27. exd4 {[%clk 0:02:26.7]} 27... b5
{[%clk 0:02:17.6]} 28. a3 {[%clk 0:02:25.2]} 28... a5 {[%clk 0:02:17.6]} 29. Ne2
{[%clk 0:02:20.1]} 29... Qc2 {[%clk 0:02:13.4]} 30. Kf2 {[%clk 0:02:19.9]} 30...
f6 {[%clk 0:02:08.4]} 31. Qh4 {[%clk 0:01:57]} 31... fxe5 {[%clk 0:02:06.4]} 32.
dxe5 {[%clk 0:01:54.4]} 32... Rxe5 {[%clk 0:02:05.8]} 33. Qf6 {[%clk 0:01:54.2]}
33... Qxe2+ {[%clk 0:01:57.1]} 34. Kg3 {[%clk 0:01:53.7]} 34... Qe1+ {[%clk
0:01:54.9]} 35. Rf2 {[%clk 0:01:52.4]} 35... R5e7 {[%clk 0:01:37.3]} 36. Kh4
{[%clk 0:01:48.4]} 36... Qe5 {[%clk 0:01:35.2]} 37. Qf3 {[%clk 0:01:46.5]} 37...
d4 {[%clk 0:01:19.9]} 38. Qb3+ {[%clk 0:01:42]} 38... Kg7 {[%clk 0:01:18.2]} 39.
Qd3 {[%clk 0:01:40.1]} 39... Qe3 {[%clk 0:01:11.1]} 40. Qf1 {[%clk 0:01:36.3]}
40... Qh6+ {[%clk 0:01:09.4]} 41. Kg3 {[%clk 0:01:31.2]} 41... Qe3+ {[%clk
0:01:04.5]} 42. Kh4 {[%clk 0:01:30.7]} 42... d3 {[%clk 0:00:58.5]} 43. Rf3
{[%clk 0:01:15]} 43... g5+ {[%clk 0:00:53.3]} 44. Kh5 {[%clk 0:01:15.1]} 44...
Qe6 {[%clk 0:00:53.9]} 45. Kxg5 {[%clk 0:01:13.9]} 45... Qh6+ {[%clk 0:00:52.1]}
46. Kf5 {[%clk 0:01:14.1]} 46... Rf8# {[%clk 0:00:51.4]} 0-1

[Event "Late-Titled-Tuesday-Blitz-January-23-2024"]
[Site "Chess.com"]
[Date "2024.01.23"]
[Round "11"]
[White "C_K_G"]
[Black "PapaieDudu"]
[Result "0-1"]
[WhiteElo "2145"]
[BlackElo "2390"]
[TimeControl "180+1"]
[EndTime "16:01:04 PST"]
[Termination "PapaieDudu won by resignation"]

1. e4 {[%clk 0:03:00.9]} 1... c5 {[%clk 0:03:00.3]} 2. Nf3 {[%clk 0:03:00.2]}
2... d6 {[%clk 0:03:00.5]} 3. d4 {[%clk 0:03:00.4]} 3... cxd4 {[%clk 0:03:01.4]}
4. Nxd4 {[%clk 0:03:00.2]} 4... Nf6 {[%clk 0:03:01.8]} 5. Nc3 {[%clk 0:03:00.3]}
5... a6 {[%clk 0:03:02.5]} 6. Be2 {[%clk 0:03:00.1]} 6... e6 {[%clk 0:03:03]} 7.
Be3 {[%clk 0:02:59.6]} 7... b5 {[%clk 0:03:03.5]} 8. a3 {[%clk 0:02:58.4]} 8...
Bb7 {[%clk 0:03:04.1]} 9. f3 {[%clk 0:02:47.2]} 9... Nbd7 {[%clk 0:03:04.2]} 10.
O-O {[%clk 0:02:46.7]} 10... Be7 {[%clk 0:03:03.7]} 11. Qe1 {[%clk 0:02:46.7]}
11... O-O {[%clk 0:03:03.3]} 12. Qf2 {[%clk 0:02:45.6]} 12... Rc8 {[%clk
0:03:01.7]} 13. g4 {[%clk 0:02:44.2]} 13... Nb6 {[%clk 0:02:55.5]} 14. g5 {[%clk
0:02:38.4]} 14... Nfd7 {[%clk 0:02:55.3]} 15. h4 {[%clk 0:02:38]} 15... d5
{[%clk 0:02:53.9]} 16. Rad1 {[%clk 0:02:31.5]} 16... e5 {[%clk 0:02:53.7]} 17.
Nf5 {[%clk 0:02:29.8]} 17... d4 {[%clk 0:02:53.7]} 18. Nxd4 {[%clk 0:02:00.1]}
18... exd4 {[%clk 0:02:53.6]} 19. Bxd4 {[%clk 0:01:59.8]} 19... Bc5 {[%clk
0:02:54.1]} 20. Rd3 {[%clk 0:01:02.4]} 20... Bxd4 {[%clk 0:02:53.5]} 21. Rxd4
{[%clk 0:01:00.5]} 21... Qc7 {[%clk 0:02:53.6]} 22. Rfd1 {[%clk 0:00:58.4]}
22... Nc5 {[%clk 0:02:54]} 23. f4 {[%clk 0:00:50.3]} 23... Ne6 {[%clk
0:02:53.9]} 24. Rd6 {[%clk 0:00:46.9]} 24... Nc4 {[%clk 0:02:51.2]} 25. Rd7
{[%clk 0:00:45.6]} 25... Qb8 {[%clk 0:02:33]} 26. f5 {[%clk 0:00:38.9]} 26...
Nf4 {[%clk 0:02:33.2]} 27. Bf1 {[%clk 0:00:36.7]} 27... Nxb2 {[%clk 0:02:30.5]}
28. R1d6 {[%clk 0:00:22.1]} 28... Rxc3 {[%clk 0:02:16.7]} 29. Qxf4 {[%clk
0:00:21.3]} 29... Nc4 {[%clk 0:02:08.7]} 30. h5 {[%clk 0:00:20.4]} 30... Nxd6
{[%clk 0:02:08.7]} 31. Rxd6 {[%clk 0:00:20.8]} 31... Rd8 {[%clk 0:02:03.8]} 32.
e5 {[%clk 0:00:20.5]} 32... Rxd6 {[%clk 0:02:03.2]} 33. exd6 {[%clk 0:00:20.7]}
33... Rc4 {[%clk 0:01:56.7]} 34. Qe5 {[%clk 0:00:20.3]} 34... Re4 {[%clk
0:01:56.2]} 35. Qg3 {[%clk 0:00:19.5]} 35... Qd8 {[%clk 0:01:54.5]} 36. Bd3
{[%clk 0:00:18.2]} 36... Rd4 {[%clk 0:01:52.2]} 37. h6 {[%clk 0:00:17]} 37...
Qxd6 {[%clk 0:01:51.3]} 38. Qxd6 {[%clk 0:00:16.1]} 38... Rxd6 {[%clk
0:01:51.9]} 39. hxg7 {[%clk 0:00:17]} 39... f6 {[%clk 0:01:49.6]} 0-1

[Event "Late-Titled-Tuesday-Blitz-January-23-2024"]
[Site "Chess.com"]
[Date "2024.01.23"]
[Round "11"]
[White "NtcPou"]
[Black "rionelG"]
[Result "0-1"]
[WhiteElo "2016"]
[BlackElo "2254"]
[TimeControl "180+1"]
[EndTime "16:01:08 PST"]
[Termination "rionelG won on time"]

1. e4 {[%clk 0:02:34.4]} 1... c5 {[%clk 0:02:59]} 2. Nf3 {[%clk 0:02:33.8]} 2...
d6 {[%clk 0:02:59.2]} 3. Bb5+ {[%clk 0:02:33.2]} 3... Nd7 {[%clk 0:02:58.9]} 4.
O-O {[%clk 0:02:33]} 4... a6 {[%clk 0:02:59.4]} 5. Be2 {[%clk 0:02:31]} 5...
Ngf6 {[%clk 0:02:49.8]} 6. Nc3 {[%clk 0:02:30.5]} 6... e6 {[%clk 0:02:38]} 7. d4
{[%clk 0:02:29.7]} 7... cxd4 {[%clk 0:02:37.5]} 8. Qxd4 {[%clk 0:02:29.5]} 8...
Be7 {[%clk 0:02:34.5]} 9. Bg5 {[%clk 0:01:31.5]} 9... O-O {[%clk 0:02:30.5]} 10.
Rad1 {[%clk 0:01:27]} 10... Qc7 {[%clk 0:02:29.8]} 11. Qc4 {[%clk 0:01:21.3]}
11... Qxc4 {[%clk 0:02:20.9]} 12. Bxc4 {[%clk 0:01:21]} 12... h6 {[%clk
0:02:21.2]} 13. Bh4 {[%clk 0:01:19.1]} 13... b5 {[%clk 0:02:21]} 14. Bb3 {[%clk
0:01:18.9]} 14... Re8 {[%clk 0:02:21.3]} 15. Nd2 {[%clk 0:01:12.8]} 15... Bb7
{[%clk 0:02:19.6]} 16. f3 {[%clk 0:01:12.1]} 16... Rac8 {[%clk 0:01:55.6]} 17.
a4 {[%clk 0:01:10.3]} 17... Bc6 {[%clk 0:01:35.5]} 18. Bf2 {[%clk 0:00:15]}
18... Nc5 {[%clk 0:01:32]} 19. Bxc5 {[%clk 0:00:14.2]} 19... dxc5 {[%clk
0:01:32.9]} 20. e5 {[%clk 0:00:10.8]} 20... Nd7 {[%clk 0:01:29.5]} 21. f4 {[%clk
0:00:09.8]} 21... c4 {[%clk 0:01:28.9]} 22. Ba2 {[%clk 0:00:09.9]} 22... Nc5
{[%clk 0:01:28.7]} 23. axb5 {[%clk 0:00:08.6]} 23... axb5 {[%clk 0:01:28.8]} 24.
Rfe1 {[%clk 0:00:08.5]} 24... Red8 {[%clk 0:01:27.3]} 25. Ndb1 {[%clk
0:00:02.7]} 25... b4 {[%clk 0:01:27]} 0-1

[Event "Late-Titled-Tuesday-Blitz-January-23-2024"]
[Site "Chess.com"]
[Date "2024.01.23"]
[Round "11"]
[White "deloewre"]
[Black "GMJustin"]
[Result "0-1"]
[WhiteElo "2009"]
[BlackElo "2303"]
[TimeControl "180+1"]
[EndTime "16:01:17 PST"]
[Termination "GMJustin won on time"]

1. c4 {[%clk 0:03:00.9]} 1... Nf6 {[%clk 0:02:49.6]} 2. Nc3 {[%clk 0:02:59.3]}
2... e6 {[%clk 0:02:49.1]} 3. e4 {[%clk 0:02:57.9]} 3... d5 {[%clk 0:02:48.8]}
4. e5 {[%clk 0:02:56.6]} 4... Ne4 {[%clk 0:02:48.9]} 5. Nxe4 {[%clk 0:02:44.3]}
5... dxe4 {[%clk 0:02:49.8]} 6. Qc2 {[%clk 0:02:35.4]} 6... Qd4 {[%clk
0:02:34.5]} 7. f3 {[%clk 0:02:03]} 7... Bc5 {[%clk 0:02:29.8]} 8. Ne2 {[%clk
0:01:24]} 8... Qf2+ {[%clk 0:02:19.1]} 9. Kd1 {[%clk 0:01:23.5]} 9... exf3
{[%clk 0:02:18.6]} 10. gxf3 {[%clk 0:01:19.5]} 10... Qxf3 {[%clk 0:02:18.7]} 11.
d4 {[%clk 0:01:09.4]} 11... Qxh1 {[%clk 0:02:10.8]} 12. Ke1 {[%clk 0:01:06.6]}
12... Bb4+ {[%clk 0:01:58.9]} 13. Bd2 {[%clk 0:01:00.8]} 13... Bxd2+ {[%clk
0:01:56.9]} 14. Qxd2 {[%clk 0:00:58.6]} 14... Qxh2 {[%clk 0:01:55.7]} 15. Qg5
{[%clk 0:00:50.7]} 15... O-O {[%clk 0:01:49.2]} 16. Rd1 {[%clk 0:00:46.9]} 16...
f6 {[%clk 0:01:40.9]} 17. exf6 {[%clk 0:00:41.4]} 17... Rxf6 {[%clk 0:01:41.6]}
18. Kd2 {[%clk 0:00:22.6]} 18... Qh6 {[%clk 0:01:34.3]} 19. Qxh6 {[%clk
0:00:19.9]} 19... Rxh6 {[%clk 0:01:34.5]} 20. Kc1 {[%clk 0:00:18.6]} 20... Nc6
{[%clk 0:01:33.4]} 21. Ng3 {[%clk 0:00:15.4]} 21... Bd7 {[%clk 0:01:29]} 22. Ne4
{[%clk 0:00:13.7]} 22... Rd8 {[%clk 0:01:28.2]} 23. Nc5 {[%clk 0:00:12.8]} 23...
Bc8 {[%clk 0:01:27.3]} 24. Bg2 {[%clk 0:00:10.6]} 24... Nxd4 {[%clk 0:01:22.3]}
25. Kb1 {[%clk 0:00:03]} 25... e5 {[%clk 0:01:17]} 0-1

[Event "Late-Titled-Tuesday-Blitz-January-23-2024"]
[Site "Chess.com"]
[Date "2024.01.23"]
[Round "11"]
[White "JaackCamel"]
[Black "Smile2005"]
[Result "0-1"]
[WhiteElo "2146"]
[BlackElo "2401"]
[TimeControl "180+1"]
[EndTime "16:01:25 PST"]
[Termination "Smile2005 won on time"]

1. d4 {[%clk 0:03:00.9]} 1... Nf6 {[%clk 0:02:59.4]} 2. c4 {[%clk 0:03:00.5]}
2... e6 {[%clk 0:02:59.5]} 3. Nc3 {[%clk 0:02:59.9]} 3... Bb4 {[%clk 0:02:58.6]}
4. e3 {[%clk 0:02:59.8]} 4... d5 {[%clk 0:02:57.9]} 5. Ne2 {[%clk 0:02:55.6]}
5... O-O {[%clk 0:02:57.2]} 6. a3 {[%clk 0:02:54.9]} 6... Be7 {[%clk 0:02:56.7]}
7. Ng3 {[%clk 0:02:51.9]} 7... c5 {[%clk 0:02:56.6]} 8. cxd5 {[%clk 0:02:45]}
8... cxd4 {[%clk 0:02:56.1]} 9. exd4 {[%clk 0:02:40.3]} 9... Nxd5 {[%clk
0:02:56.2]} 10. Be2 {[%clk 0:02:33.9]} 10... Nc6 {[%clk 0:02:55]} 11. O-O {[%clk
0:02:33.4]} 11... Bf6 {[%clk 0:02:54.5]} 12. Be3 {[%clk 0:02:24.7]} 12... Nxe3
{[%clk 0:02:52.4]} 13. fxe3 {[%clk 0:02:24.5]} 13... b6 {[%clk 0:02:47.8]} 14.
Bf3 {[%clk 0:02:16]} 14... Bb7 {[%clk 0:02:47.1]} 15. Rc1 {[%clk 0:02:05]} 15...
Rc8 {[%clk 0:02:46.3]} 16. Nce4 {[%clk 0:01:54.3]} 16... Bg5 {[%clk 0:02:37.1]}
17. Qe2 {[%clk 0:01:46]} 17... Nxd4 {[%clk 0:02:32.1]} 18. Qf2 {[%clk
0:01:08.3]} 18... Nxf3+ {[%clk 0:02:30.5]} 19. gxf3 {[%clk 0:01:02.4]} 19...
Rxc1 {[%clk 0:02:29]} 20. Rxc1 {[%clk 0:00:58.1]} 20... Bh4 {[%clk 0:02:25]} 21.
Qe2 {[%clk 0:00:40.8]} 21... f5 {[%clk 0:02:18.5]} 22. Nc3 {[%clk 0:00:36.4]}
22... f4 {[%clk 0:02:12.1]} 23. exf4 {[%clk 0:00:30.7]} 23... Qd4+ {[%clk
0:02:10.7]} 24. Kg2 {[%clk 0:00:27.6]} 24... Qxf4 {[%clk 0:02:05.9]} 25. Qxe6+
{[%clk 0:00:23.4]} 25... Kh8 {[%clk 0:02:05]} 26. Nce4 {[%clk 0:00:15.9]} 26...
Qxf3+ {[%clk 0:02:02]} 27. Kh3 {[%clk 0:00:13.6]} 27... Bxg3 {[%clk 0:01:50]}
28. Rf1 {[%clk 0:00:09.6]} 28... Bf2+ {[%clk 0:01:40.5]} 29. Ng3 {[%clk
0:00:09.8]} 29... Qg2+ {[%clk 0:01:32.2]} 30. Kg4 {[%clk 0:00:04.1]} 30... Bc8
{[%clk 0:01:21.3]} 31. Rxf2 {[%clk 0:00:01.8]} 31... Bxe6+ {[%clk 0:01:20.5]}
0-1

[Event "Late-Titled-Tuesday-Blitz-January-23-2024"]
[Site "Chess.com"]
[Date "2024.01.23"]
[Round "11"]
[White "DvaHrasta"]
[Black "CaspiIsrael"]
[Result "0-1"]
[WhiteElo "2507"]
[BlackElo "2687"]
[TimeControl "180+1"]
[EndTime "16:01:28 PST"]
[Termination "CaspiIsrael won on time"]

1. c4 {[%clk 0:02:59.7]} 1... e5 {[%clk 0:02:55.2]} 2. g3 {[%clk 0:02:59.6]}
2... Nf6 {[%clk 0:02:52.4]} 3. Bg2 {[%clk 0:02:59.5]} 3... c6 {[%clk 0:02:52.8]}
4. d4 {[%clk 0:02:58.6]} 4... exd4 {[%clk 0:02:52.8]} 5. Qxd4 {[%clk 0:02:58.2]}
5... d5 {[%clk 0:02:53.4]} 6. Nf3 {[%clk 0:02:56.2]} 6... Na6 {[%clk 0:02:53.1]}
7. O-O {[%clk 0:02:51.9]} 7... Bc5 {[%clk 0:02:51.5]} 8. Qe5+ {[%clk 0:02:51.5]}
8... Be7 {[%clk 0:02:50]} 9. cxd5 {[%clk 0:02:49.1]} 9... Qxd5 {[%clk
0:02:48.9]} 10. Nc3 {[%clk 0:02:48.9]} 10... Qxe5 {[%clk 0:02:48.7]} 11. Nxe5
{[%clk 0:02:49.1]} 11... O-O {[%clk 0:02:47.3]} 12. h3 {[%clk 0:02:46.3]} 12...
Be6 {[%clk 0:02:47.1]} 13. e4 {[%clk 0:02:42.7]} 13... Rfd8 {[%clk 0:02:46.6]}
14. Be3 {[%clk 0:02:41.3]} 14... h6 {[%clk 0:02:44.2]} 15. Rfd1 {[%clk
0:02:39.9]} 15... Bc5 {[%clk 0:02:43.1]} 16. Bxc5 {[%clk 0:02:33.7]} 16... Nxc5
{[%clk 0:02:44]} 17. f4 {[%clk 0:02:30.7]} 17... a5 {[%clk 0:02:43.4]} 18. Kf2
{[%clk 0:02:28.9]} 18... Kf8 {[%clk 0:02:29.9]} 19. Ke3 {[%clk 0:02:28.4]} 19...
Ke7 {[%clk 0:02:27.1]} 20. f5 {[%clk 0:02:27.4]} 20... Bd7 {[%clk 0:02:22.7]}
21. a4 {[%clk 0:02:18.2]} 21... Be8 {[%clk 0:02:20.1]} 22. Nc4 {[%clk
0:02:15.6]} 22... Nfd7 {[%clk 0:02:18.1]} 23. e5 {[%clk 0:02:10.7]} 23... Rdb8
{[%clk 0:02:02.9]} 24. Rd6 {[%clk 0:02:02.4]} 24... Nxe5 {[%clk 0:01:56.2]} 25.
Nxe5 {[%clk 0:01:44.3]} 25... Kxd6 {[%clk 0:01:55.7]} 26. Nc4+ {[%clk
0:01:41.1]} 26... Kc7 {[%clk 0:01:54.6]} 27. f6 {[%clk 0:01:29.8]} 27... g5
{[%clk 0:01:48.9]} 28. h4 {[%clk 0:01:27.1]} 28... Bd7 {[%clk 0:01:48.2]} 29.
Rd1 {[%clk 0:01:17.7]} 29... Re8+ {[%clk 0:01:44.3]} 30. Kf2 {[%clk 0:01:15.8]}
30... b6 {[%clk 0:01:44.1]} 31. Bf3 {[%clk 0:00:51.8]} 31... Re6 {[%clk
0:01:42.1]} 32. Kg2 {[%clk 0:00:30.6]} 32... Rxf6 {[%clk 0:01:40.1]} 33. Ne4
{[%clk 0:00:28.9]} 33... Nxe4 {[%clk 0:01:36.4]} 34. Bxe4 {[%clk 0:00:29.1]}
34... gxh4 {[%clk 0:01:34.9]} 35. Rxd7+ {[%clk 0:00:25.7]} 35... Kxd7 {[%clk
0:01:33.4]} 36. Nxb6+ {[%clk 0:00:25.9]} 36... Kc7 {[%clk 0:01:27.5]} 37. Nxa8+
{[%clk 0:00:25.9]} 37... Kb7 {[%clk 0:01:28.2]} 0-1